bitfinex/quotes_ETHUSD_20241217
["timestamp","ask_amount","ask_price","bid_price","bid_amount"]
[1734461203921,1.04204218,3943.7,3942.7,0.3197]
[1734461204150,1.04204218,3943.7,3942.9,0.3197]
[1734461204353,1.04204218,3943.9,3942.9,0.3197]
[1734461205524,2.33585615,3943.8,3942.9,0.3197]
[1734461205725,1.29381397,3943.7,3942.9,0.3197]
[1734461206066,1.04204218,3943.4,3942.9,0.3197]
[1734461206379,1.04204218,3943.2,3942.9,0.3197]
[1734461206528,2.33599265,3943.1,3942.6,0.3197]
[1734461206730,2.33599265,3943.0,3942.6,0.3197]
[1734461206950,2.33599265,3942.9,3942.6,0.3197]
[1734461207153,1.04204218,3943.0,3942.6,0.3197]
[1734461207949,2.33541187,3943.0,3942.6,0.3197]
[1734461208151,1.04204218,3943.0,3942.6,0.3197]
[1734461208599,1.04204218,3943.1,3942.6,0.3197]
[1734461209090,2.33489048,3943.1,3942.6,0.3197]
[1734461209287,1.04204218,3943.2,3942.6,0.3197]
[1734461209604,2.15427958,3944.1,3943.1,0.3197]
[1734461209605,1.04204218,3943.9,3943.1,0.3197]
[1734461209888,1.04204218,3944.2,3943.3,0.3197]
[1734461210084,1.04204218,3944.3,3943.3,0.3197]
[1734461210290,2.33483814,3944.2,3943.3,0.3197]
[1734461212454,1.04204218,3945.6,3944.5,0.3197]
[1734461212859,2.33529162,3945.5,3944.5,0.3197]
[1734461213198,1.29324944,3945.4,3944.5,0.3197]
[1734461213364,1.04204218,3945.5,3944.5,0.3197]
[1734461214197,2.33513244,3945.4,3944.5,0.3197]
[1734461214494,0.38981957,3945.3,3944.5,0.3197]
[1734461214658,1.04204218,3945.6,3944.5,0.3197]
[1734461214853,2.33516623,3945.5,3944.5,0.3197]
[1734461215091,1.72415773,3945.8,3944.5,0.3197]
[1734461215092,1.04204218,3945.6,3944.5,0.3197]
[1734461216126,2.33506887,3945.6,3944.5,0.3197]
[1734461216317,1.29302669,3945.5,3944.5,0.3197]
[1734461216482,1.04204218,3945.6,3944.5,0.3197]
[1734461216821,2.33500029,3945.5,3944.5,0.3197]
[1734461217205,1.04204218,3945.4,3944.0,0.3197]
[1734461217368,1.04204218,3945.2,3944.0,0.3197]
[1734461217887,5.33500029,3945.2,3944.0,0.3197]
[1734461218088,1.73184854,3945.2,3944.0,0.3197]
[1734461218678,3.0,3945.0,3944.0,0.3197]
[1734461218881,1.04204218,3945.0,3944.0,0.3197]
[1734461219081,1.04204218,3944.9,3944.0,0.3197]
[1734461219309,5.33474041,3944.9,3944.0,0.3197]
[1734461219614,0.76938037,3944.8,3944.0,0.3197]
[1734461220574,1.04204218,3945.0,3944.0,0.3197]
[1734461220792,2.25286964,3945.2,3944.0,0.3197]
[1734461220793,1.73184854,3945.2,3944.0,0.3197]
[1734461220989,3.0,3945.1,3944.0,0.3197]
[1734461221379,1.73184854,3945.2,3944.0,0.3197]
[1734461222003,1.04204218,3945.2,3944.0,0.3197]
[1734461222187,1.04204218,3945.5,3944.3,0.3197]
[1734461222386,1.04204218,3945.8,3944.5,0.3197]
[1734461222622,1.04204218,3945.9,3944.5,0.3197]
[1734461222806,1.04204218,3946.0,3944.5,0.3197]
[1734461223005,1.04204218,3946.0,3944.3,3.0]
[1734461223006,1.04204218,3946.0,3944.7,0.3197]
[1734461223205,1.04204218,3946.1,3944.7,0.3197]
[1734461223785,1.29166904,3946.0,3944.8,0.02534798]
[1734461224123,0.12773537,3946.3,3944.6,3.28913465]
[1734461224124,1.04204218,3946.3,3944.9,0.3197]
[1734461224288,0.34319055,3946.3,3944.9,0.3197]
[1734461226741,1.86884218,3946.5,3944.9,0.3197]
[1734461226742,1.04204218,3946.5,3944.9,0.3197]
[1734461227419,0.12597551,3946.8,3945.5,0.3197]
[1734461227604,2.60356479,3947.4,3945.8,2.95716465]
[1734461227605,1.04204218,3947.3,3945.8,2.95716465]
[1734461227806,1.04204218,3947.4,3945.9,0.3197]
[1734461230463,1.04204218,3948.9,3947.5,0.3197]
[1734461230609,1.04204218,3949.1,3947.5,0.3197]
[1734461231056,3.8213112,3949.0,3947.5,0.3197]
[1734461231260,1.04204218,3949.1,3947.5,0.3197]
[1734461231261,2.33097077,3948.9,3947.5,0.3197]
[1734461231431,0.38940341,3948.8,3947.5,0.3197]
[1734461231774,0.8268,3948.7,3947.5,0.3197]
[1734461232857,0.38940341,3948.8,3947.5,0.3197]
[1734461233062,1.86884218,3949.1,3947.5,0.3197]
[1734461233219,3.0,3949.0,3947.5,0.3197]
[1734461233423,0.8268,3949.1,3947.5,0.3197]
[1734461233665,5.11286014,3949.1,3947.5,0.3197]
[1734461233864,1.86884218,3949.1,3947.5,0.3197]
[1734461234031,3.95183687,3949.0,3947.5,0.3197]
[1734461234676,2.95716465,3948.9,3947.5,0.3197]
[1734461234832,3.0,3948.8,3947.5,0.3197]
[1734461235432,0.8268,3948.6,3947.1,0.3197]
[1734461235636,2.95716465,3948.1,3947.1,0.3197]
[1734461235944,0.29571647,3948.0,3947.1,0.3197]
[1734461236163,3.0,3948.4,3947.1,0.3197]
[1734461236665,0.8268,3948.6,3947.1,0.3197]
[1734461236826,0.95183687,3949.0,3947.1,0.3197]
[1734461237028,0.8273,3949.1,3947.1,0.3197]
[1734461239185,0.12929856,3949.2,3947.3,0.3197]
[1734461239394,0.12929856,3949.2,3947.2,3.0]
[1734461239395,0.12929856,3949.2,3947.5,0.3197]
[1734461239975,0.8273,3949.9,3947.5,0.3197]
[1734461240157,0.8273,3949.9,3947.6,3.55]
[1734461240330,0.37844647,3949.8,3947.8,0.3197]
[1734461242369,0.12943673,3949.6,3947.8,0.3197]
[1734461248599,0.37844647,3949.8,3947.8,0.3197]
[1734461249870,0.1241371,3949.6,3947.8,0.3197]
[1734461251604,2.95716465,3949.3,3947.8,0.3197]
[1734461251809,0.29571647,3949.2,3947.8,0.3197]
[1734461252026,0.7603,3949.1,3946.9,2.39917049]
[1734461252211,0.7603,3949.1,3947.0,0.3197]
[1734461252212,2.39917049,3948.8,3947.0,0.3197]
[1734461254121,3.55,3949.0,3947.0,0.3197]
[1734461254622,2.95320898,3948.7,3947.0,0.3197]
[1734461254817,0.2953209,3948.6,3947.0,0.3197]
[1734461255220,3.2953209,3948.6,3947.0,0.3197]
[1734461256096,5.48598898,3948.3,3947.0,0.3197]
[1734461256306,0.7603,3948.5,3947.0,0.3197]
[1734461256307,2.95320898,3947.9,3947.0,0.3197]
[1734461256817,3.71350898,3947.9,3947.0,0.3197]
[1734461257019,0.3713509,3947.8,3947.0,0.3197]
[1734461257829,3.0,3948.2,3947.0,0.3197]
[1734461258008,0.7603,3948.4,3947.0,0.3197]
[1734461258342,0.12610218,3948.5,3947.0,0.3197]
[1734461260445,2.95320898,3948.3,3947.0,0.3197]
[1734461260745,2.53283,3948.2,3947.0,0.3197]
[1734461260902,3.72883812,3948.1,3947.0,0.3197]
[1734461261318,4.7708803,3948.1,3947.0,0.3197]
[1734461262150,1.7708803,3948.1,3947.0,0.3197]
[1734461262304,1.2878016,3948.0,3947.0,0.3197]
[1734461262504,1.7708803,3948.1,3947.0,0.3197]
[1734461262811,2.21651103,3948.0,3947.0,0.3197]
[1734461263034,0.92871526,3948.0,3947.0,0.3197]
[1734461263230,3.25889946,3948.0,3947.0,0.3197]
[1734461263431,2.95320898,3947.5,3945.3,0.3197]
[1734461263631,1.28811371,3947.4,3945.3,0.3197]
[1734461263820,0.60436649,3947.3,3945.3,0.3197]
[1734461264409,1.04204218,3947.2,3945.3,0.3197]
[1734461264653,0.60436649,3947.3,3945.3,0.3197]
[1734461264654,2.33090804,3947.1,3945.3,0.3197]
[1734461264809,1.04204218,3946.9,3945.3,0.3197]
[1734461265009,1.28886586,3946.8,3945.3,0.3197]
[1734461265206,1.59869108,3946.7,3945.3,0.3197]
[1734461265409,2.88161246,3946.6,3945.3,0.3197]
[1734461265670,1.28957028,3946.5,3945.3,0.3197]
[1734461265969,1.59204218,3946.6,3945.3,0.3197]
[1734461266169,1.28941013,3946.5,3945.3,0.3197]
[1734461266369,0.31905731,3946.4,3945.3,0.3197]
[1734461266922,0.3091208,3946.7,3945.3,0.3197]
[1734461267348,4.35116298,3946.7,3945.3,0.3197]
[1734461267546,1.35116298,3946.7,3945.3,0.3197]
[1734461268128,0.3091208,3946.7,3945.3,0.3197]
[1734461268331,1.04204218,3946.9,3945.3,0.3197]
[1734461268516,1.16679945,3947.1,3945.3,0.3197]
[1734461268912,0.12475727,3947.1,3945.3,0.3197]
[1734461272370,2.33265485,3947.0,3945.3,0.3197]
[1734461272570,0.40204754,3946.9,3945.5,0.3197]
[1734461272865,1.04204218,3947.2,3945.6,0.3197]
[1734461273064,1.16578075,3947.7,3946.1,0.3197]
[1734461273220,0.12373857,3947.7,3946.4,0.3197]
[1734461273535,0.12373857,3947.7,3946.5,0.3197]
[1734461273730,1.04204218,3948.0,3946.5,0.3197]
[1734461274062,1.04204218,3948.4,3946.7,2.39950697]
[1734461274273,2.84080397,3948.8,3946.7,2.39950697]
[1734461274274,1.04204218,3948.5,3946.9,0.3197]
[1734461274920,1.04204218,3948.6,3946.9,0.3197]
[1734461275169,1.04204218,3948.4,3946.9,0.3197]
[1734461275337,1.29145361,3948.3,3946.9,0.3197]
[1734461275531,0.38965591,3948.2,3947.1,0.3197]
[1734461275949,1.04204218,3948.3,3947.1,0.3197]
[1734461276593,1.04204218,3948.4,3947.1,0.3197]
[1734461276774,1.29148494,3948.3,3947.1,0.3197]
[1734461277117,1.04204218,3948.4,3947.1,0.3197]
[1734461277252,1.29146093,3948.3,3947.1,0.3197]
[1734461277451,2.56682841,3948.2,3947.1,0.3197]
[1734461277672,1.29142619,3948.1,3947.1,0.3197]
[1734461277873,1.27539249,3948.2,3947.1,0.3197]
[1734461278201,1.29146568,3948.1,3947.1,0.3197]
[1734461278400,1.27539249,3948.2,3947.1,0.3197]
[1734461278602,0.2964285,3948.1,3947.1,0.3197]
[1734461279307,1.1678714,3948.3,3947.1,0.3197]
[1734461280274,1.04204218,3948.4,3947.1,0.3197]
[1734461280477,1.04204218,3948.7,3947.2,0.3450315]
[1734461280677,1.04204218,3948.8,3947.2,0.3197]
[1734461281091,1.29117896,3948.7,3947.2,0.3197]
[1734461281425,0.68962844,3948.7,3947.2,0.3197]
[1734461283095,0.68962844,3948.7,3947.3,0.3197]
[1734461283307,1.04204218,3948.8,3947.3,0.3197]
[1734461284126,1.29102105,3948.7,3947.3,0.3197]
[1734461284340,1.04204218,3948.3,3947.3,0.3197]
[1734461284502,4.09567328,3948.5,3947.3,0.3197]
[1734461284503,2.33306323,3948.2,3947.3,0.3197]
[1734461284696,1.04204218,3948.0,3947.3,0.3197]
[1734461284916,1.29102105,3947.9,3947.3,0.3197]
[1734461285085,1.04204218,3948.0,3947.3,0.3197]
[1734461285285,1.29069317,3947.9,3947.3,0.3197]
[1734461285490,1.04204218,3948.0,3947.3,0.3197]
[1734461285718,1.59014773,3947.9,3947.3,0.3197]
[1734461285936,0.29947181,3947.9,3947.3,0.3197]
[1734461286433,1.34151399,3947.9,3947.3,0.3197]
[1734461286606,1.04204218,3947.7,3946.8,0.3197]
[1734461286786,2.04159304,3947.6,3946.8,0.3197]
[1734461286986,2.33232483,3947.5,3946.8,0.3197]
[1734461287223,1.79299039,3947.6,3946.8,0.3197]
[1734461287386,1.29016647,3947.5,3946.8,0.3197]
[1734461287613,2.33220865,3947.5,3946.8,0.3197]
[1734461287800,1.29018779,3947.4,3946.8,0.3197]
[1734461288002,1.58478419,3947.5,3946.8,0.3197]
[1734461288186,1.29020605,3947.4,3946.8,0.3197]
[1734461288383,1.58478419,3947.5,3946.8,0.3197]
[1734461288631,0.54274201,3947.5,3946.8,0.3197]
[1734461288832,1.52386381,3947.4,3946.8,0.3197]
[1734461289123,1.29029008,3947.3,3946.8,0.3197]
[1734461289329,1.04204218,3947.3,3946.6,0.3197]
[1734461290216,1.29045736,3947.2,3946.6,0.3197]
[1734461290414,3.11369954,3947.1,3945.5,0.3197]
[1734461290606,3.05352182,3947.0,3945.5,0.3197]
[1734461290794,2.33249954,3946.9,3945.5,0.3197]
[1734461290993,1.29045736,3946.8,3945.5,0.3197]
[1734461291194,1.29009825,3946.7,3945.5,0.3197]
[1734461291499,1.04204218,3946.8,3945.5,0.3197]
[1734461291688,1.04204218,3946.9,3945.5,0.3197]
[1734461291885,1.28985642,3946.8,3945.5,0.3197]
[1734461292231,1.04204218,3946.8,3945.5,0.3197]
[1734461292405,1.45277495,3946.9,3945.5,0.3197]
[1734461292612,1.28996362,3946.8,3945.5,0.3197]
[1734461292800,1.45277495,3946.9,3945.5,0.3197]
[1734461292998,1.28999114,3946.8,3945.5,0.3197]
[1734461293303,1.45277495,3946.9,3945.5,0.3197]
[1734461293505,1.29015907,3946.8,3945.5,0.3197]
[1734461293706,1.45277495,3946.9,3945.5,0.3197]
[1734461294015,1.45277495,3946.9,3945.6,0.3197]
[1734461294016,2.88388209,3946.8,3945.6,0.3197]
[1734461294217,1.29024409,3946.7,3945.6,0.3197]
[1734461294416,1.59376219,3946.8,3945.6,0.3197]
[1734461294594,1.29050081,3946.7,3945.6,0.3197]
[1734461294794,1.59376219,3946.8,3945.6,0.3197]
[1734461295015,1.6472597,3946.7,3945.6,0.3197]
[1734461295218,1.04204218,3946.9,3945.6,0.3197]
[1734461295533,1.04204218,3947.4,3946.1,0.3197]
[1734461295704,1.04204218,3947.6,3946.3,0.3197]
[1734461295908,1.04204218,3947.7,3946.3,0.3197]
[1734461296218,2.33326936,3947.6,3946.3,0.3197]
[1734461296443,1.29122718,3947.5,3946.3,0.3197]
[1734461296590,2.33326936,3947.5,3946.3,0.3197]
[1734461296792,1.04204218,3947.5,3946.3,0.3197]
[1734461297034,1.72214634,3948.0,3946.3,0.3197]
[1734461297035,2.33378725,3947.4,3946.3,0.3197]
[1734461297237,1.29224619,3947.3,3946.3,0.3197]
[1734461297550,1.04204218,3947.4,3946.3,0.3197]
[1734461297829,1.29233028,3947.3,3946.3,0.3197]
[1734461298052,1.04204218,3947.3,3946.3,0.3197]
[1734461298227,1.29228024,3947.2,3946.3,0.3197]
[1734461298530,1.31513133,3947.3,3946.3,0.3197]
[1734461298746,1.29243402,3947.2,3946.3,0.3197]
[1734461298972,1.04204218,3947.2,3946.3,0.3197]
[1734461299235,1.04204218,3947.3,3946.3,0.3197]
[1734461299408,1.29254253,3947.2,3946.3,0.3197]
[1734461299594,1.04204218,3947.2,3946.3,0.3197]
[1734461299802,1.04204218,3947.0,3946.3,0.3197]
[1734461300365,1.04204218,3946.8,3946.3,0.3197]
[1734461300500,1.04204218,3946.9,3946.3,0.3197]
[1734461300857,1.04204218,3946.7,3946.3,0.3197]
[1734461301342,1.04204218,3946.8,3946.3,0.3197]
[1734461301759,2.33456765,3946.8,3946.3,0.3197]
[1734461302503,2.33456765,3946.7,3946.3,0.3197]
[1734461302737,2.20450597,3946.9,3946.3,0.3197]
[1734461302738,1.04204218,3946.8,3946.3,0.3197]
[1734461302937,2.33472822,3946.8,3946.3,0.3197]
[1734461303262,1.29264558,3946.7,3946.3,0.3197]
[1734461303456,1.04204218,3946.8,3946.3,0.3197]
[1734461303604,2.33464493,3946.8,3946.3,0.3197]
[1734461304131,1.29260275,3946.7,3946.3,0.3197]
[1734461304341,1.04204218,3946.8,3946.3,0.3197]
[1734461304502,2.33452803,3946.8,3946.3,0.3197]
[1734461304704,2.33452803,3946.7,3946.3,0.3197]
[1734461305007,1.04204218,3946.8,3946.3,0.3197]
[1734461305315,2.33454874,3946.8,3946.3,0.3197]
[1734461305649,1.04204218,3946.9,3946.3,0.3197]
[1734461305943,2.33467133,3946.8,3946.3,0.3197]
[1734461306258,1.04204218,3946.9,3946.3,0.3197]
[1734461306401,1.30255273,3946.9,3946.3,0.3197]
[1734461306604,1.29279133,3946.8,3946.3,0.3197]
[1734461306805,1.30255273,3946.9,3946.3,0.3197]
[1734461307002,1.29280224,3946.8,3946.3,0.3197]
[1734461307237,1.30255273,3946.9,3946.3,0.3197]
[1734461307440,1.29265181,3946.8,3946.3,0.3197]
[1734461307714,1.30255273,3946.9,3946.3,0.3197]
[1734461307916,2.36040939,3946.8,3945.1,0.3197]
[1734461308118,1.04204218,3946.5,3945.2,0.3197]
[1734461308530,1.29264779,3946.4,3945.2,0.3197]
[1734461308732,1.04204218,3946.5,3945.4,0.3197]
[1734461309040,1.29234373,3946.4,3945.4,0.3197]
[1734461309243,1.04204218,3946.5,3945.4,0.3197]
[1734461309448,2.33432476,3946.4,3945.4,0.3197]
[1734461309607,1.29228258,3946.3,3945.4,0.3197]
[1734461309808,1.04204218,3946.4,3945.4,0.3197]
[1734461310008,1.2922685,3946.3,3945.4,0.3197]
[1734461310304,1.04204218,3946.4,3945.4,0.3197]
[1734461310507,1.29221033,3946.3,3945.4,0.3197]
[1734461310709,1.29215773,3946.2,3945.4,0.3197]
[1734461310922,1.04204218,3946.2,3945.4,0.3197]
[1734461311442,1.29222922,3946.1,3945.4,0.3197]
[1734461311644,1.04204218,3946.2,3945.4,0.3197]
[1734461311845,1.29211792,3946.1,3945.4,0.3197]
[1734461312008,1.04204218,3946.2,3945.4,0.3197]
[1734461312206,0.8263,3945.9,3944.3,0.3197]
[1734461312451,2.33412588,3945.8,3944.3,0.3197]
[1734461312683,2.33412588,3945.7,3944.3,0.3197]
[1734461312809,1.2920837,3945.6,3944.3,0.3197]
[1734461313008,1.04204218,3945.7,3944.5,0.3197]
[1734461313251,1.29174741,3945.6,3944.5,0.3197]
[1734461313465,1.04204218,3945.8,3944.5,0.3197]
[1734461313625,1.29153431,3945.7,3944.5,0.3197]
[1734461314002,1.29153431,3945.6,3944.5,0.3197]
[1734461314115,1.04204218,3945.7,3944.5,0.3197]
[1734461314309,1.29163585,3945.6,3944.7,0.3197]
[1734461314508,1.04204218,3945.7,3944.7,0.3197]
[1734461314727,1.29135924,3945.6,3944.7,0.3197]
[1734461314960,1.04204218,3945.7,3944.7,0.3197]
[1734461315459,1.29137333,3945.6,3944.7,0.3197]
[1734461315769,1.29137463,3945.5,3944.7,0.3197]
[1734461315913,1.04204218,3945.6,3944.7,0.3197]
[1734461316113,1.29141613,3945.5,3944.7,0.3197]
[1734461316308,1.04204218,3945.6,3944.7,0.3197]
[1734461316628,1.04204218,3945.7,3944.7,0.3197]
[1734461316809,2.33280828,3945.6,3944.7,0.3197]
[1734461317026,1.04204218,3945.7,3944.7,0.3197]
[1734461317250,1.29060794,3945.6,3944.7,0.3197]
[1734461317545,1.04204218,3945.7,3944.7,0.3197]
[1734461317950,1.04204218,3945.8,3944.7,0.3197]
[1734461318145,1.04204218,3945.9,3944.7,0.3197]
[1734461318345,1.29025151,3945.8,3944.7,0.3197]
[1734461318511,1.04204218,3945.9,3944.7,0.3197]
[1734461318711,1.29005871,3945.8,3944.7,0.3197]
[1734461318951,1.04204218,3945.9,3944.7,0.3197]
[1734461318952,0.29653435,3945.7,3944.7,0.3197]
[1734461319450,1.33857653,3945.7,3944.7,0.3197]
[1734461319653,2.33206294,3945.6,3944.7,0.3197]
[1734461319950,1.29002076,3945.5,3944.7,0.3197]
[1734461320171,2.33206294,3945.5,3944.7,0.3197]
[1734461320333,1.04204218,3945.6,3944.7,0.3197]
[1734461320528,2.33184213,3945.5,3944.7,0.3197]
[1734461320761,1.04204218,3945.5,3944.7,0.3197]
[1734461321440,1.28967309,3945.4,3944.7,0.3197]
[1734461321649,1.04204218,3945.5,3944.7,0.3197]
[1734461322422,1.51115312,3945.6,3944.7,0.3197]
[1734461322623,1.59667949,3945.5,3944.7,0.3197]
[1734461322945,2.40107844,3945.3,3944.7,0.3197]
[1734461323121,2.40107844,3944.8,3944.3,0.3197]
[1734461323758,2.40107844,3944.8,3942.8,0.3197]
[1734461323759,2.40107844,3944.4,3942.8,0.3197]
[1734461323935,0.49362484,3944.3,3942.8,0.3197]
[1734461324380,2.40107844,3944.0,3942.8,0.3197]
[1734461324935,1.28754657,3943.9,3942.8,0.3197]
[1734461325132,3.57762218,3943.9,3942.8,0.3197]
[1734461325487,2.40107844,3943.6,3942.8,0.3197]
[1734461325778,2.53558,3943.9,3941.2,0.2668925]
[1734461325779,2.40107844,3943.2,3941.3,0.3197]
[1734461325957,2.96191108,3943.2,3941.3,0.3197]
[1734461326759,0.55,3943.1,3941.3,0.3197]
[1734461327575,3.55,3943.1,3941.3,0.3197]
[1734461331844,0.24010784,3943.5,3941.3,0.3197]
[1734461331845,3.24010784,3943.5,3941.3,2.96191108]
[1734461332066,3.0,3943.9,3941.5,0.3197]
[1734461332282,2.96191108,3944.0,3941.6,0.29747285]
[1734461332583,2.96191108,3944.0,3941.7,0.3197]
[1734461333377,3.55,3943.9,3941.7,0.3197]
[1734461334090,0.55,3943.9,3941.7,0.3197]
[1734461334288,0.55,3943.7,3941.7,0.3197]
[1734461334705,0.12641292,3943.6,3941.8,0.02536392]
[1734461334876,0.12641292,3943.6,3941.9,0.3197]
[1734461335239,0.49362484,3944.3,3942.1,0.3197]
[1734461335412,0.49362484,3944.3,3942.2,3.3197]
[1734461335588,0.49362484,3944.3,3942.4,0.3197]
[1734461336076,1.83294218,3945.1,3943.0,0.3197]
[1734461336277,2.96191108,3944.1,3943.2,0.3197]
[1734461337288,0.7909,3944.3,3943.2,0.3197]
[1734461337494,0.55,3944.2,3943.2,0.3197]
[1734461338379,0.8114,3944.6,3943.2,0.3197]
[1734461338581,0.55,3944.6,3943.2,0.3197]
[1734461338776,0.55009762,3944.6,3943.2,0.34505836]
[1734461339019,1.824766,3944.9,3943.2,0.3197]
[1734461339880,1.95153954,3944.9,3943.2,0.3197]
[1734461340387,0.55,3944.8,3943.2,0.3197]
[1734461342320,1.14013954,3944.9,3943.2,0.3197]
[1734461343127,3.085,3944.8,3943.2,0.3197]
[1734461343289,0.8199,3944.5,3943.2,0.3197]
[1734461343494,0.55,3944.4,3943.2,0.3197]
[1734461344192,2.96191108,3944.3,3943.2,0.3197]
[1734461344523,0.8199,3944.5,3942.9,0.3197]
[1734461344524,0.8199,3943.8,3942.9,0.3197]
[1734461344709,0.37818111,3943.7,3942.9,0.3197]
[1734461345921,0.55,3943.6,3942.9,0.3197]
[1734461346225,2.95597805,3943.6,3941.5,0.3197]
[1734461347386,2.95597805,3943.6,3941.6,0.3197]
[1734461348268,3.08577,3943.6,3941.6,0.3197]
[1734461348428,0.72451938,3943.5,3941.6,0.3197]
[1734461348610,0.55,3943.4,3941.6,0.3197]
[1734461352467,0.55,3943.0,3941.6,0.3197]
[1734461352756,0.55,3943.2,3941.6,0.3197]
[1734461353320,0.55,3943.0,3941.6,0.3197]
[1734461353520,0.55,3943.2,3941.6,0.3197]
[1734461353739,0.55,3943.0,3941.6,0.3197]
[1734461354428,0.55,3943.3,3941.6,0.3197]
[1734461355457,2.876384,3943.3,3941.6,0.3197]
[1734461355759,1.59204218,3943.3,3941.6,0.3197]
[1734461356420,2.32636594,3943.2,3941.6,0.3197]
[1734461356643,2.53232518,3943.1,3941.6,0.3197]
[1734461356854,1.24753092,3943.1,3941.6,0.3197]
[1734461357035,2.96134272,3942.5,3941.6,0.3197]
[1734461357237,0.55,3942.4,3941.6,0.3197]
[1734461357451,0.8199,3942.3,3941.6,0.3197]
[1734461357650,1.34098549,3942.2,3941.6,0.3197]
[1734461357973,0.55,3942.0,3941.0,0.3197]
[1734461358134,0.55,3941.5,3940.9,1.94008733]
[1734461358562,3.08711,3941.5,3940.9,1.94008733]
[1734461358739,0.55,3941.5,3940.9,1.94008733]
[1734461359086,0.55,3941.3,3940.9,1.94008733]
[1734461360249,3.51134272,3941.3,3940.9,1.94008733]
[1734461360765,0.55,3941.3,3940.9,1.94008733]
[1734461360968,1.04204218,3941.8,3940.9,2.25978733]
[1734461361130,4.86194218,3942.1,3940.9,2.25978733]
[1734461361484,3.04756536,3942.0,3940.9,2.25978733]
[1734461361628,0.7215991,3942.0,3940.9,2.25978733]
[1734461361828,4.83302767,3942.2,3940.9,2.25978733]
[1734461362025,0.79098549,3942.2,3940.9,2.25978733]
[1734461362353,0.12916147,3941.7,3940.9,2.25978733]
[1734461364199,1.3699,3941.6,3940.9,1.94008733]
[1734461364327,2.32647672,3941.5,3940.9,1.94008733]
[1734461364529,2.66952942,3941.4,3940.9,1.94008733]
[1734461364779,2.4270366,3941.4,3940.9,1.94008733]
[1734461364955,1.38499442,3941.4,3940.9,1.94008733]
[1734461365329,1.28463483,3941.3,3940.9,1.94008733]
[1734461365556,2.4270366,3941.4,3940.9,1.94008733]
[1734461365860,0.55,3941.2,3940.2,0.3197]
[1734461366061,0.55,3941.0,3940.2,0.3197]
[1734461366233,5.87665024,3941.0,3940.2,0.3197]
[1734461366427,1.28454942,3940.9,3940.2,0.3197]
[1734461366651,0.74396549,3940.8,3940.2,0.3197]
[1734461366855,0.55,3941.0,3940.2,0.3197]
[1734461367531,0.55,3941.1,3940.2,0.3197]
[1734461367730,4.59204218,3941.1,3940.2,0.3197]
[1734461368031,4.28444194,3941.0,3940.2,0.3197]
[1734461368332,1.59204218,3941.1,3940.2,0.3197]
[1734461368333,3.55,3940.9,3940.2,0.3197]
[1734461368552,0.55,3940.7,3940.2,0.3197]
[1734461369482,2.87660272,3940.7,3940.2,0.3197]
[1734461369784,0.55,3940.7,3940.2,0.3197]
[1734461370781,0.51420422,3940.8,3940.2,0.3197]
[1734461371329,0.55,3940.9,3940.2,0.3197]
[1734461371989,2.95892097,3940.9,3940.2,0.3197]
[1734461372146,0.55,3940.5,3940.1,1.96679223]
[1734461372531,0.55,3940.7,3940.1,1.96679223]
[1734461372730,0.55,3940.2,3940.1,1.96679223]
[1734461372941,4.38412632,3940.2,3940.0,0.90401461]
[1734461373470,1.38412632,3940.2,3940.0,0.90401461]
[1734461375769,4.38412632,3940.2,3940.0,0.90401461]
[1734461376369,2.538,3940.1,3940.0,0.90401461]
[1734461376577,0.55,3939.5,3938.2,0.3197]
[1734461376807,0.55,3938.9,3938.2,0.3197]
[1734461377842,0.55,3938.7,3938.2,0.3197]
[1734461378151,2.95892097,3938.6,3937.9,0.1623055]
[1734461378348,2.95892097,3938.6,3937.9,0.4820055]
[1734461378559,0.4523825,3938.7,3937.9,0.4820055]
[1734461378763,2.40892097,3938.9,3937.9,0.4820055]
[1734461379140,1.014901,3938.7,3937.9,0.4820055]
[1734461381286,0.55,3938.6,3937.9,0.4820055]
[1734461381441,2.40892097,3938.5,3937.9,0.4820055]
[1734461382137,1.014901,3938.7,3937.9,0.4820055]
[1734461382371,2.53257378,3938.9,3937.9,0.4820055]
[1734461382372,2.53257378,3938.9,3938.0,0.25289124]
[1734461382575,2.53257378,3938.9,3937.9,0.4820055]
[1734461382740,1.014901,3938.8,3937.9,0.4820055]
[1734461383475,1.014901,3938.8,3938.0,0.3197]
[1734461383680,2.53257378,3938.9,3938.0,0.3197]
[1734461383977,1.014831,3939.1,3938.0,0.3197]
[1734461384142,2.40892097,3938.9,3938.0,0.3197]
[1734461384678,3.42372597,3939.3,3938.0,0.3197]
[1734461386380,0.55,3939.6,3938.1,0.34509227]
[1734461386688,3.42363697,3939.7,3938.1,0.34509227]
[1734461386861,2.40892097,3939.7,3938.1,0.3197]
[1734461387443,0.12492167,3939.5,3938.1,0.3197]
[1734461387876,2.40892097,3939.7,3938.1,0.3197]
[1734461389148,2.53356363,3939.7,3938.1,0.3197]
[1734461390370,2.40892097,3939.7,3938.1,0.3197]
[1734461393892,2.53596836,3939.7,3938.1,0.3197]
[1734461399811,0.12704739,3939.7,3938.4,3.7797]
[1734461400105,0.12704739,3939.7,3938.6,0.7797]
[1734461402978,1.03228831,3940.0,3938.7,2.40892097]
[1734461403228,1.03228831,3940.3,3939.5,2.40892097]
[1734461403449,1.03228831,3940.6,3939.6,0.8127]
[1734461403585,1.03228831,3941.0,3939.8,0.8127]
[1734461403783,1.03228831,3940.8,3939.8,0.8127]
[1734461404499,1.03228831,3940.9,3939.8,0.8127]
[1734461404699,2.32038171,3940.9,3939.8,0.8127]
[1734461404901,1.2880934,3940.8,3939.8,0.8127]
[1734461405098,0.12429712,3940.6,3939.8,0.8127]
[1734461406097,1.03228831,3941.0,3939.9,3.24700192]
[1734461406305,1.03228831,3941.2,3940.1,0.8127]
[1734461406689,1.03228831,3941.1,3940.1,0.8127]
[1734461407540,1.28783638,3941.2,3940.1,0.8127]
[1734461407541,2.32012469,3941.0,3940.1,0.8127]
[1734461407706,0.38685572,3940.9,3937.7,1.57955285]
[1734461407905,0.38685572,3940.9,3935.4,2.12702161]
[1734461407906,0.25,3936.2,3935.4,2.12702161]
[1734461408101,0.25,3935.5,3935.4,1.87392161]
[1734461408322,4.85876895,3935.5,3935.4,1.87392161]